[Event "Late-Titled-Tuesday-Blitz-June-18-2024"]
[Site "Chess.com"]
[Date "2024.06.18"]
[Round "6"]
[White "Dr_troll"]
[Black "sansanathalia"]
[Result "1-0"]
[WhiteElo "2656"]
[BlackElo "2457"]
[TimeControl "180+1"]
[EndTime "15:10:13 PDT"]
[Termination "Dr_troll won on time"]

1. c4 {[%clk 0:02:55.9]} 1... Nf6 {[%clk 0:02:57]} 2. Nc3 {[%clk 0:02:55.5]}
2... e6 {[%clk 0:02:56.3]} 3. Nf3 {[%clk 0:02:55.6]} 3... d5 {[%clk 0:02:54]} 4.
e3 {[%clk 0:02:54.8]} 4... Be7 {[%clk 0:02:52.7]} 5. b3 {[%clk 0:02:54.8]} 5...
O-O {[%clk 0:02:49.9]} 6. Bb2 {[%clk 0:02:55.2]} 6... b6 {[%clk 0:02:44.8]} 7.
Be2 {[%clk 0:02:50.2]} 7... Bb7 {[%clk 0:02:40.9]} 8. O-O {[%clk 0:02:50.3]}
8... Nbd7 {[%clk 0:02:39.8]} 9. Rc1 {[%clk 0:02:49.8]} 9... c5 {[%clk
0:02:39.2]} 10. Qc2 {[%clk 0:02:48.4]} 10... Rc8 {[%clk 0:02:38.1]} 11. cxd5
{[%clk 0:02:47.2]} 11... Nxd5 {[%clk 0:02:35]} 12. Qb1 {[%clk 0:02:43.3]} 12...
Qc7 {[%clk 0:02:06.6]} 13. Ne4 {[%clk 0:02:32.5]} 13... Rfd8 {[%clk 0:01:58]}
14. Neg5 {[%clk 0:02:24.3]} 14... N5f6 {[%clk 0:01:50.9]} 15. Bb5 {[%clk
0:02:16.4]} 15... Bc6 {[%clk 0:01:43.8]} 16. Bxc6 {[%clk 0:02:12.3]} 16... Qxc6
{[%clk 0:01:42.1]} 17. Ne5 {[%clk 0:02:13]} 17... Nxe5 {[%clk 0:00:59.3]} 18.
Bxe5 {[%clk 0:02:13.9]} 18... Rxd2 {[%clk 0:00:45.8]} 19. Bxf6 {[%clk
0:02:08.6]} 19... Bxf6 {[%clk 0:00:42.8]} 20. Qxh7+ {[%clk 0:02:08.2]} 20... Kf8
{[%clk 0:00:42.8]} 21. Ne4 {[%clk 0:02:08.4]} 21... Rd5 {[%clk 0:00:40.6]} 22.
Rfd1 {[%clk 0:02:05.5]} 22... Rcd8 {[%clk 0:00:37.4]} 23. Rxd5 {[%clk
0:02:01.7]} 23... Qxd5 {[%clk 0:00:34.6]} 24. h3 {[%clk 0:01:57.4]} 24... Ke7
{[%clk 0:00:26.3]} 25. Nxf6 {[%clk 0:01:29]} 25... gxf6 {[%clk 0:00:24.9]} 26.
Qc2 {[%clk 0:01:29.6]} 26... Rg8 {[%clk 0:00:23.1]} 27. f4 {[%clk 0:01:27.7]}
27... Qf3 {[%clk 0:00:17]} 28. Re1 {[%clk 0:01:25.4]} 28... Qxh3 {[%clk
0:00:16.4]} 29. Qd2 {[%clk 0:01:19]} 29... Qf5 {[%clk 0:00:05]} 30. Rd1 {[%clk
0:01:18.9]} 30... Kf8 {[%clk 0:00:05.2]} 31. Qf2 {[%clk 0:01:08]} 31... Qe4
{[%clk 0:00:04.4]} 32. Rd8+ {[%clk 0:01:04.1]} 32... Kg7 {[%clk 0:00:04.4]} 33.
Qg3+ {[%clk 0:01:03.1]} 33... Qg6 {[%clk 0:00:04.7]} 34. Qxg6+ {[%clk
0:01:03.7]} 34... fxg6 {[%clk 0:00:03.7]} 35. Rd7+ {[%clk 0:01:04.4]} 35... Kh6
{[%clk 0:00:03.2]} 36. Rxa7 {[%clk 0:01:05]} 36... Rd8 {[%clk 0:00:03.4]} 37.
Kf2 {[%clk 0:01:04.1]} 37... Rd2+ {[%clk 0:00:03.4]} 38. Kf3 {[%clk 0:01:04.2]}
38... Rd6 {[%clk 0:00:02.7]} 39. Rb7 {[%clk 0:01:01.4]} 39... f5 {[%clk
0:00:02.2]} 40. g4 {[%clk 0:01:00.1]} 40... g5 {[%clk 0:00:02.1]} 41. gxf5
{[%clk 0:00:55.7]} 41... exf5 {[%clk 0:00:02.1]} 42. a4 {[%clk 0:00:53.3]} 42...
Kg6 {[%clk 0:00:02.1]} 43. fxg5 {[%clk 0:00:53.3]} 43... Kxg5 {[%clk 0:00:02.2]}
44. Ra7 {[%clk 0:00:52.9]} 44... Kf6 {[%clk 0:00:02.1]} 45. Ra6 {[%clk
0:00:52.8]} 45... Re6 {[%clk 0:00:01.8]} 46. Kf4 {[%clk 0:00:48.3]} 46... Re4+
{[%clk 0:00:02]} 47. Kf3 {[%clk 0:00:48.6]} 47... Re6 {[%clk 0:00:02.1]} 48. a5
{[%clk 0:00:48.8]} 48... bxa5 {[%clk 0:00:01.9]} 49. Rxa5 {[%clk 0:00:49.7]}
49... Rc6 {[%clk 0:00:02.2]} 50. Rb5 {[%clk 0:00:48.1]} 50... Ke6 {[%clk
0:00:02.4]} 51. Kf4 {[%clk 0:00:47.8]} 51... Kf6 {[%clk 0:00:02.5]} 52. Ra5
{[%clk 0:00:47]} 52... Ke6 {[%clk 0:00:01.9]} 53. Rb5 {[%clk 0:00:43.5]} 53...
c4 {[%clk 0:00:02]} 54. Re5+ {[%clk 0:00:42.5]} 54... Kd6 {[%clk 0:00:01.8]} 55.
Rxf5 {[%clk 0:00:40.9]} 55... cxb3 {[%clk 0:00:01.3]} 56. Rb5 {[%clk 0:00:40.8]}
56... Rc3 {[%clk 0:00:01]} 57. e4 {[%clk 0:00:41.2]} 57... Kc6 {[%clk
0:00:01.4]} 58. Rb8 {[%clk 0:00:41.2]} 58... Kc7 {[%clk 0:00:01.7]} 59. Rb4
{[%clk 0:00:40.8]} 59... Kd7 {[%clk 0:00:02]} 60. Kf5 {[%clk 0:00:39.8]} 60...
Ke7 {[%clk 0:00:01.2]} 61. Rb7+ {[%clk 0:00:38]} 61... Kd6 {[%clk 0:00:01.2]}
62. e5+ {[%clk 0:00:38.6]} 62... Kc6 {[%clk 0:00:01.6]} 63. Rb8 {[%clk 0:00:38]}
63... Kc7 {[%clk 0:00:01.8]} 64. Rb4 {[%clk 0:00:37.7]} 64... Kd7 {[%clk
0:00:02.3]} 65. e6+ {[%clk 0:00:34.8]} 65... Ke8 {[%clk 0:00:02.4]} 66. Ke5
{[%clk 0:00:31.3]} 66... Re3+ {[%clk 0:00:02]} 67. Kd5 {[%clk 0:00:31.9]} 67...
Rd3+ {[%clk 0:00:02.3]} 68. Kc4 {[%clk 0:00:32]} 68... Re3 {[%clk 0:00:02.2]}
69. Kd5 {[%clk 0:00:30]} 69... Rd3+ {[%clk 0:00:02.4]} 70. Kc6 {[%clk
0:00:29.9]} 70... Re3 {[%clk 0:00:02.1]} 71. Kd6 {[%clk 0:00:25.9]} 71... Rd3+
{[%clk 0:00:02.4]} 72. Kc5 {[%clk 0:00:25.8]} 72... Rc3+ {[%clk 0:00:02.4]} 73.
Kd4 {[%clk 0:00:26]} 73... Rf3 {[%clk 0:00:02.4]} 74. Ke4 {[%clk 0:00:23.8]}
74... Rh3 {[%clk 0:00:02.2]} 75. Rb7 {[%clk 0:00:23.5]} 1-0

[Event "Late-Titled-Tuesday-Blitz-June-18-2024"]
[Site "Chess.com"]
[Date "2024.06.18"]
[Round "6"]
[White "Smiechu"]
[Black "Zq1"]
[Result "0-1"]
[WhiteElo "2318"]
[BlackElo "2486"]
[TimeControl "180+1"]
[EndTime "15:10:33 PDT"]
[Termination "Zq1 won by resignation"]

1. e4 {[%clk 0:02:56.4]} 1... c5 {[%clk 0:02:59.2]} 2. Nf3 {[%clk 0:02:54.5]}
2... d6 {[%clk 0:02:59.4]} 3. d4 {[%clk 0:02:55.1]} 3... cxd4 {[%clk 0:02:59.5]}
4. Nxd4 {[%clk 0:02:56]} 4... Nf6 {[%clk 0:02:59.4]} 5. Nc3 {[%clk 0:02:56.6]}
5... Nc6 {[%clk 0:02:59.7]} 6. Be3 {[%clk 0:02:56.4]} 6... Ng4 {[%clk
0:02:59.1]} 7. Bb5 {[%clk 0:02:55.4]} 7... Nxe3 {[%clk 0:02:57]} 8. fxe3 {[%clk
0:02:55.6]} 8... Bd7 {[%clk 0:02:55.4]} 9. Bxc6 {[%clk 0:02:52.1]} 9... bxc6
{[%clk 0:02:54.8]} 10. O-O {[%clk 0:02:52.1]} 10... e6 {[%clk 0:02:55]} 11. e5
{[%clk 0:02:52.3]} 11... Be7 {[%clk 0:02:48.5]} 12. exd6 {[%clk 0:02:52.3]}
12... Bxd6 {[%clk 0:02:48.5]} 13. Ne4 {[%clk 0:02:52.1]} 13... Be7 {[%clk
0:02:48.1]} 14. Nb3 {[%clk 0:02:52]} 14... O-O {[%clk 0:02:42.3]} 15. Nbc5
{[%clk 0:02:51.7]} 15... Bc8 {[%clk 0:02:37.6]} 16. Qxd8 {[%clk 0:02:50.5]}
16... Rxd8 {[%clk 0:02:36.1]} 17. Rfd1 {[%clk 0:02:50.9]} 17... Kf8 {[%clk
0:02:19.1]} 18. Kf2 {[%clk 0:02:45.6]} 18... f6 {[%clk 0:02:13.5]} 19. c4 {[%clk
0:02:35.4]} 19... a5 {[%clk 0:02:08.4]} 20. Rxd8+ {[%clk 0:02:32.2]} 20... Bxd8
{[%clk 0:02:07.7]} 21. Nd6 {[%clk 0:02:32.7]} 21... Be7 {[%clk 0:01:55.7]} 22.
Rd1 {[%clk 0:02:23.9]} 22... e5 {[%clk 0:01:48.5]} 23. Ke2 {[%clk 0:02:13.2]}
23... Rb8 {[%clk 0:01:44.3]} 24. Nxc8 {[%clk 0:02:11.1]} 24... Rxc8 {[%clk
0:01:43.5]} 25. Ne4 {[%clk 0:02:00.4]} 25... f5 {[%clk 0:01:33.1]} 26. Nd6
{[%clk 0:02:00.3]} 26... Rb8 {[%clk 0:01:33.2]} 27. b3 {[%clk 0:01:58.9]} 27...
g6 {[%clk 0:01:32.1]} 28. e4 {[%clk 0:01:54.5]} 28... a4 {[%clk 0:01:25.3]} 29.
exf5 {[%clk 0:01:52.2]} 29... axb3 {[%clk 0:01:19.3]} 30. axb3 {[%clk
0:01:51.6]} 30... Rxb3 {[%clk 0:01:12.1]} 31. fxg6 {[%clk 0:01:50.5]} 31... hxg6
{[%clk 0:01:10.9]} 32. c5 {[%clk 0:01:39.2]} 32... Rb2+ {[%clk 0:01:02.8]} 33.
Kf3 {[%clk 0:01:38.1]} 33... Rc2 {[%clk 0:01:00.2]} 34. Ne4 {[%clk 0:01:29.6]}
34... Bxc5 {[%clk 0:00:54.2]} 35. Rd7 {[%clk 0:01:27.5]} 35... Be7 {[%clk
0:00:50.2]} 36. h3 {[%clk 0:01:16.6]} 36... c5 {[%clk 0:00:47.9]} 37. Rc7 {[%clk
0:01:16.1]} 37... Ke8 {[%clk 0:00:41.8]} 38. g4 {[%clk 0:01:16.1]} 38... c4
{[%clk 0:00:41]} 39. g5 {[%clk 0:01:15.4]} 39... Rc1 {[%clk 0:00:35.9]} 40. h4
{[%clk 0:01:13.2]} 40... Kd8 {[%clk 0:00:34.3]} 41. Rc6 {[%clk 0:01:12.3]} 41...
Kd7 {[%clk 0:00:33.9]} 42. Rxg6 {[%clk 0:01:11.5]} 42... c3 {[%clk 0:00:34.2]}
43. Ke3 {[%clk 0:00:51.1]} 43... Re1+ {[%clk 0:00:32.6]} 44. Kd3 {[%clk
0:00:47.5]} 44... Rxe4 {[%clk 0:00:32.4]} 45. h5 {[%clk 0:00:38.1]} 45... Rg4
{[%clk 0:00:28.5]} 46. h6 {[%clk 0:00:32.7]} 46... Rxg5 {[%clk 0:00:22.1]} 47.
h7 {[%clk 0:00:30.9]} 47... Rh5 {[%clk 0:00:22]} 48. Rg7 {[%clk 0:00:28.5]}
48... Ke6 {[%clk 0:00:21.6]} 49. Kxc3 {[%clk 0:00:28.5]} 49... Bf6 {[%clk
0:00:19.1]} 50. Rc7 {[%clk 0:00:23.8]} 50... Be7 {[%clk 0:00:18.8]} 51. Rc6+
{[%clk 0:00:17.5]} 51... Kf5 {[%clk 0:00:18.2]} 52. Rc7 {[%clk 0:00:13.5]} 52...
Rxh7 {[%clk 0:00:17.9]} 53. Kd3 {[%clk 0:00:14]} 53... Rh3+ {[%clk 0:00:17.6]}
54. Ke2 {[%clk 0:00:14]} 54... Bg5 {[%clk 0:00:17.5]} 55. Rc4 {[%clk 0:00:10.5]}
55... e4 {[%clk 0:00:15.9]} 56. Rc8 {[%clk 0:00:10.6]} 56... Bf6 {[%clk
0:00:14.5]} 57. Rf8 {[%clk 0:00:09.9]} 57... Ke5 {[%clk 0:00:13.8]} 58. Re8+
{[%clk 0:00:10.2]} 58... Kf4 {[%clk 0:00:13.8]} 59. Rf8 {[%clk 0:00:10.3]} 59...
Rh2+ {[%clk 0:00:13.6]} 60. Kf1 {[%clk 0:00:10.6]} 60... Rh6 {[%clk 0:00:11.7]}
61. Kg1 {[%clk 0:00:10.1]} 61... Ke3 {[%clk 0:00:10.7]} 62. Ra8 {[%clk
0:00:09.4]} 62... Bd4 {[%clk 0:00:08.6]} 63. Ra3+ {[%clk 0:00:09]} 63... Kf4+
{[%clk 0:00:08.2]} 64. Kg2 {[%clk 0:00:08.9]} 64... Rg6+ {[%clk 0:00:07.7]} 65.
Kf1 {[%clk 0:00:07.6]} 65... e3 {[%clk 0:00:07.3]} 66. Ke2 {[%clk 0:00:06.7]}
66... Ke4 {[%clk 0:00:07.4]} 67. Ra4 {[%clk 0:00:05.5]} 67... Rg2+ {[%clk
0:00:07.3]} 68. Ke1 {[%clk 0:00:05.5]} 68... Rb2 {[%clk 0:00:07.3]} 69. Rc4
{[%clk 0:00:04.9]} 69... Kf3 {[%clk 0:00:06.6]} 70. Rc1 {[%clk 0:00:04.6]} 70...
Rh2 {[%clk 0:00:05.4]} 71. Kd1 {[%clk 0:00:02.5]} 71... Rh1+ {[%clk 0:00:05.5]}
72. Kc2 {[%clk 0:00:02.9]} 72... Rxc1+ {[%clk 0:00:05.9]} 73. Kd3 {[%clk
0:00:02.9]} 73... e2 {[%clk 0:00:05.7]} 0-1

[Event "Late-Titled-Tuesday-Blitz-June-18-2024"]
[Site "Chess.com"]
[Date "2024.06.18"]
[Round "6"]
[White "Mysterio47"]
[Black "WilsonPalencia21"]
[Result "1/2-1/2"]
[WhiteElo "2835"]
[BlackElo "2608"]
[TimeControl "180+1"]
[EndTime "15:10:37 PDT"]
[Termination "Game drawn - insufficient material"]

1. e4 {[%clk 0:03:00.9]} 1... c5 {[%clk 0:02:59.8]} 2. Nf3 {[%clk 0:02:56]} 2...
d6 {[%clk 0:03:00.1]} 3. d4 {[%clk 0:02:55.1]} 3... cxd4 {[%clk 0:03:00.5]} 4.
Nxd4 {[%clk 0:02:55.7]} 4... Nf6 {[%clk 0:03:00.8]} 5. Nc3 {[%clk 0:02:56.2]}
5... g6 {[%clk 0:03:01.3]} 6. f3 {[%clk 0:02:55.9]} 6... Bg7 {[%clk 0:03:01.6]}
7. Be3 {[%clk 0:02:56.8]} 7... O-O {[%clk 0:03:02.3]} 8. Qd2 {[%clk 0:02:57.4]}
8... Nc6 {[%clk 0:03:03.2]} 9. Bc4 {[%clk 0:02:57.9]} 9... Ne5 {[%clk
0:03:03.6]} 10. Bb3 {[%clk 0:02:57.9]} 10... Bd7 {[%clk 0:03:04.2]} 11. h4
{[%clk 0:02:57.7]} 11... h5 {[%clk 0:03:03.9]} 12. O-O-O {[%clk 0:02:57.6]}
12... Rc8 {[%clk 0:03:03.4]} 13. Kb1 {[%clk 0:02:57.8]} 13... Re8 {[%clk
0:03:02.9]} 14. Nde2 {[%clk 0:02:43.1]} 14... Qa5 {[%clk 0:03:01]} 15. Bh6
{[%clk 0:02:38.8]} 15... Nc4 {[%clk 0:02:55.9]} 16. Bxc4 {[%clk 0:02:38.1]}
16... Rxc4 {[%clk 0:02:56.8]} 17. Bxg7 {[%clk 0:02:35.5]} 17... Kxg7 {[%clk
0:02:57.7]} 18. b3 {[%clk 0:02:27.8]} 18... Rc5 {[%clk 0:02:56.5]} 19. Nd5
{[%clk 0:02:15.7]} 19... Qxd2 {[%clk 0:02:55.5]} 20. Rxd2 {[%clk 0:02:16.6]}
20... Nxd5 {[%clk 0:02:54.1]} 21. exd5 {[%clk 0:02:17.5]} 21... b5 {[%clk
0:02:44.3]} 22. c3 {[%clk 0:02:15.6]} 22... Rec8 {[%clk 0:02:32.3]} 23. Kb2
{[%clk 0:02:15.5]} 23... a5 {[%clk 0:02:26.4]} 24. Rc1 {[%clk 0:02:13.3]} 24...
a4 {[%clk 0:02:20.2]} 25. Ng3 {[%clk 0:02:08.8]} 25... Bf5 {[%clk 0:02:13.6]}
26. Rd4 {[%clk 0:01:57.8]} 26... axb3 {[%clk 0:02:12.5]} 27. axb3 {[%clk
0:01:57.6]} 27... R8c7 {[%clk 0:02:03.9]} 28. Nf1 {[%clk 0:01:53.3]} 28... Bc8
{[%clk 0:01:57.5]} 29. Ne3 {[%clk 0:01:53.1]} 29... Ra7 {[%clk 0:01:53.5]} 30.
Nc2 {[%clk 0:01:37.9]} 30... Bb7 {[%clk 0:01:48.8]} 31. Nb4 {[%clk 0:01:37.9]}
31... f6 {[%clk 0:01:45.7]} 32. Re1 {[%clk 0:01:37.2]} 32... Kf7 {[%clk
0:01:44.2]} 33. Re3 {[%clk 0:01:31.6]} 33... Ba8 {[%clk 0:01:43.2]} 34. Re1
{[%clk 0:01:19]} 34... Bb7 {[%clk 0:01:40.1]} 35. Rd3 {[%clk 0:01:17.1]} 35...
Ba8 {[%clk 0:01:36.8]} 36. Ra1 {[%clk 0:01:16.2]} 36... Rxa1 {[%clk 0:01:34.6]}
37. Kxa1 {[%clk 0:01:17.1]} 37... e5 {[%clk 0:01:31.2]} 38. dxe6+ {[%clk
0:01:18]} 38... Kxe6 {[%clk 0:01:31.2]} 39. Kb2 {[%clk 0:01:18.9]} 39... g5
{[%clk 0:01:30.5]} 40. Rd4 {[%clk 0:01:12.4]} 40... gxh4 {[%clk 0:01:26.7]} 41.
Rxh4 {[%clk 0:01:13.3]} 41... Rg5 {[%clk 0:01:26.9]} 42. Nd3 {[%clk 0:01:11.5]}
42... Rxg2+ {[%clk 0:01:25.3]} 43. Ka3 {[%clk 0:01:12.1]} 43... Rg5 {[%clk
0:01:17.1]} 44. Nf4+ {[%clk 0:01:00.6]} 44... Kf5 {[%clk 0:01:08.8]} 45. Ne2
{[%clk 0:00:52.6]} 45... Ke6 {[%clk 0:00:54.4]} 46. Kb4 {[%clk 0:00:46.7]} 46...
Kd7 {[%clk 0:00:49.8]} 47. f4 {[%clk 0:00:39]} 47... Rg4 {[%clk 0:00:46.9]} 48.
Rxh5 {[%clk 0:00:37.5]} 48... Bf3 {[%clk 0:00:46.2]} 49. Rh7+ {[%clk 0:00:37.8]}
49... Kd8 {[%clk 0:00:44.6]} 50. Nd4 {[%clk 0:00:37.8]} 50... Rxf4 {[%clk
0:00:41.8]} 51. Kxb5 {[%clk 0:00:38.4]} 51... Ke8 {[%clk 0:00:29.9]} 52. Kb6
{[%clk 0:00:26.3]} 52... Be4 {[%clk 0:00:24.2]} 53. Ra7 {[%clk 0:00:26.3]} 53...
Rh4 {[%clk 0:00:17.9]} 54. Ra2 {[%clk 0:00:20.9]} 54... f5 {[%clk 0:00:17.8]}
55. Rf2 {[%clk 0:00:19.5]} 55... Rh5 {[%clk 0:00:13.8]} 56. c4 {[%clk
0:00:16.8]} 56... Kd7 {[%clk 0:00:14]} 57. b4 {[%clk 0:00:16.6]} 57... Rh4
{[%clk 0:00:12.3]} 58. c5 {[%clk 0:00:16.6]} 58... dxc5 {[%clk 0:00:12.6]} 59.
bxc5 {[%clk 0:00:17.5]} 59... f4 {[%clk 0:00:06.5]} 60. c6+ {[%clk 0:00:15.6]}
60... Bxc6 {[%clk 0:00:05.3]} 61. Nxc6 {[%clk 0:00:16.5]} 61... Rh6 {[%clk
0:00:05.2]} 62. Rd2+ {[%clk 0:00:17.2]} 62... Ke6 {[%clk 0:00:04]} 63. Kc5
{[%clk 0:00:17.5]} 63... Kf5 {[%clk 0:00:04]} 64. Rd5+ {[%clk 0:00:12.3]} 64...
Ke4 {[%clk 0:00:03.8]} 65. Re5+ {[%clk 0:00:12.3]} 65... Kd3 {[%clk 0:00:03.7]}
66. Nd4 {[%clk 0:00:11.5]} 66... Ra6 {[%clk 0:00:02.1]} 67. Rf5 {[%clk
0:00:07.8]} 67... Ra5+ {[%clk 0:00:02.3]} 68. Nb5 {[%clk 0:00:08.2]} 68... Rxb5+
{[%clk 0:00:02.6]} 69. Kxb5 {[%clk 0:00:08.1]} 69... Ke3 {[%clk 0:00:03.1]} 70.
Kc4 {[%clk 0:00:07.9]} 70... f3 {[%clk 0:00:03.5]} 71. Re5+ {[%clk 0:00:08.3]}
71... Kd2 {[%clk 0:00:04.1]} 72. Rd5+ {[%clk 0:00:07.8]} 72... Ke2 {[%clk
0:00:04.6]} 73. Re5+ {[%clk 0:00:07]} 73... Kd2 {[%clk 0:00:04.8]} 74. Rf5
{[%clk 0:00:06.7]} 74... Ke2 {[%clk 0:00:05.4]} 75. Kd4 {[%clk 0:00:05.4]} 75...
f2 {[%clk 0:00:05.9]} 76. Re5+ {[%clk 0:00:05.7]} 76... Kd1 {[%clk 0:00:06.3]}
77. Rf5 {[%clk 0:00:05.6]} 77... Ke1 {[%clk 0:00:06.7]} 78. Ke3 {[%clk
0:00:04.6]} 78... f1=Q {[%clk 0:00:06.5]} 79. Rxf1+ {[%clk 0:00:05.3]} 79...
Kxf1 {[%clk 0:00:06.8]} 1/2-1/2

[Event "Late-Titled-Tuesday-Blitz-June-18-2024"]
[Site "Chess.com"]
[Date "2024.06.18"]
[Round "6"]
[White "Meri-Arabidze"]
[Black "CristhianPortalR"]
[Result "1-0"]
[WhiteElo "2674"]
[BlackElo "2517"]
[TimeControl "180+1"]
[EndTime "15:10:43 PDT"]
[Termination "Meri-Arabidze won on time"]

1. c4 {[%clk 0:03:00.9]} 1... c6 {[%clk 0:02:59.4]} 2. Nf3 {[%clk 0:03:00.3]}
2... d5 {[%clk 0:03:00]} 3. g3 {[%clk 0:03:00.9]} 3... Nf6 {[%clk 0:03:00.5]} 4.
Bg2 {[%clk 0:03:01.1]} 4... Bf5 {[%clk 0:02:55]} 5. Qb3 {[%clk 0:03:00.5]} 5...
Qb6 {[%clk 0:02:28.3]} 6. d3 {[%clk 0:03:00.6]} 6... Qxb3 {[%clk 0:02:21.5]} 7.
axb3 {[%clk 0:03:00.3]} 7... e6 {[%clk 0:02:21.7]} 8. Nh4 {[%clk 0:02:54.2]}
8... Bg6 {[%clk 0:02:15.8]} 9. Nxg6 {[%clk 0:02:54.3]} 9... hxg6 {[%clk
0:02:16.7]} 10. h4 {[%clk 0:02:55.1]} 10... Nbd7 {[%clk 0:02:16.7]} 11. Nc3
{[%clk 0:02:53.1]} 11... Nc5 {[%clk 0:02:14.8]} 12. Be3 {[%clk 0:02:33.4]} 12...
Nxb3 {[%clk 0:01:57.1]} 13. Rxa7 {[%clk 0:02:27.6]} 13... Rxa7 {[%clk
0:01:53.1]} 14. Bxa7 {[%clk 0:02:28.5]} 14... d4 {[%clk 0:01:53.6]} 15. Ne4
{[%clk 0:02:09]} 15... Bb4+ {[%clk 0:01:50.6]} 16. Kd1 {[%clk 0:02:07.4]} 16...
Nxe4 {[%clk 0:01:33.3]} 17. Bxe4 {[%clk 0:02:08.3]} 17... f5 {[%clk 0:01:13.9]}
18. Bg2 {[%clk 0:01:52.2]} 18... Bc5 {[%clk 0:01:13.3]} 19. Bxc5 {[%clk
0:01:49.5]} 19... Nxc5 {[%clk 0:01:14.2]} 20. Kc2 {[%clk 0:01:46.7]} 20... Na6
{[%clk 0:01:08.4]} 21. Bf3 {[%clk 0:01:23.3]} 21... Kd7 {[%clk 0:01:06.9]} 22.
Rb1 {[%clk 0:01:20]} 22... Nb4+ {[%clk 0:01:03.6]} 23. Kb3 {[%clk 0:01:19.8]}
23... Na6 {[%clk 0:01:03.9]} 24. Ra1 {[%clk 0:00:57.5]} 24... Ra8 {[%clk
0:01:01.8]} 25. Rg1 {[%clk 0:00:40.8]} 25... e5 {[%clk 0:00:55.1]} 26. g4 {[%clk
0:00:35.2]} 26... e4 {[%clk 0:00:55.4]} 27. Bh1 {[%clk 0:00:29.7]} 27... exd3
{[%clk 0:00:53.5]} 28. exd3 {[%clk 0:00:28.4]} 28... f4 {[%clk 0:00:52.4]} 29.
g5 {[%clk 0:00:22.7]} 29... Nc5+ {[%clk 0:00:52.1]} 30. Kc2 {[%clk 0:00:22.6]}
30... Re8 {[%clk 0:00:50.2]} 31. Bf3 {[%clk 0:00:17]} 31... Rh8 {[%clk
0:00:47.8]} 32. Rg4 {[%clk 0:00:15.2]} 32... Ne6 {[%clk 0:00:48.3]} 33. b4
{[%clk 0:00:14.3]} 33... Kd6 {[%clk 0:00:48.5]} 34. Be4 {[%clk 0:00:11.6]} 34...
Ra8 {[%clk 0:00:43.1]} 35. Kb2 {[%clk 0:00:10.8]} 35... Ra4 {[%clk 0:00:42.2]}
36. Kb3 {[%clk 0:00:09.5]} 36... Ra1 {[%clk 0:00:42.2]} 37. Bxg6 {[%clk
0:00:09.7]} 37... Rf1 {[%clk 0:00:40.5]} 38. h5 {[%clk 0:00:08.1]} 38... Rxf2
{[%clk 0:00:33.2]} 39. h6 {[%clk 0:00:08.5]} 39... gxh6 {[%clk 0:00:21.6]} 40.
gxh6 {[%clk 0:00:09.4]} 40... Rh2 {[%clk 0:00:21.4]} 41. h7 {[%clk 0:00:09.8]}
41... Nf8 {[%clk 0:00:21.2]} 42. Rxf4 {[%clk 0:00:04.5]} 42... Nxg6 {[%clk
0:00:16.3]} 43. Rf6+ {[%clk 0:00:04.7]} 43... Ke5 {[%clk 0:00:16.5]} 44. Rxg6
{[%clk 0:00:05.4]} 44... Rxh7 {[%clk 0:00:17]} 45. Rg5+ {[%clk 0:00:04.7]} 45...
Kf4 {[%clk 0:00:17.1]} 46. Rg8 {[%clk 0:00:04.7]} 46... Ke3 {[%clk 0:00:17.3]}
47. Rg3+ {[%clk 0:00:04]} 47... Kd2 {[%clk 0:00:17.8]} 48. c5 {[%clk 0:00:04.3]}
48... Re7 {[%clk 0:00:16.5]} 49. Kc4 {[%clk 0:00:04.6]} 49... Rd7 {[%clk
0:00:15.6]} 50. Rg4 {[%clk 0:00:04]} 50... Ke3 {[%clk 0:00:15.1]} 51. Re4+
{[%clk 0:00:04]} 51... Kd2 {[%clk 0:00:12.8]} 52. Rxd4 {[%clk 0:00:04.9]} 52...
Rh7 {[%clk 0:00:11.8]} 53. Rg4 {[%clk 0:00:04.5]} 53... Kc2 {[%clk 0:00:11.3]}
54. Rg2+ {[%clk 0:00:04.3]} 54... Kb1 {[%clk 0:00:10.7]} 55. d4 {[%clk
0:00:04.9]} 55... Rd7 {[%clk 0:00:06.8]} 56. Rh2 {[%clk 0:00:04.2]} 56... Kc1
{[%clk 0:00:06.6]} 57. Rg2 {[%clk 0:00:03.4]} 57... Kd1 {[%clk 0:00:06.9]} 58.
Rb2 {[%clk 0:00:03.2]} 58... Kc1 {[%clk 0:00:06.6]} 59. Rb3 {[%clk 0:00:03.5]}
59... Kc2 {[%clk 0:00:06.6]} 60. Rh3 {[%clk 0:00:03.7]} 60... Kb2 {[%clk
0:00:05.2]} 61. Rg3 {[%clk 0:00:03.6]} 61... Kc2 {[%clk 0:00:03.7]} 62. Rg2+
{[%clk 0:00:03.7]} 62... Kb1 {[%clk 0:00:04.1]} 63. Rg6 {[%clk 0:00:04.4]} 63...
Kc1 {[%clk 0:00:04.3]} 64. Rd6 {[%clk 0:00:04.4]} 64... Rh7 {[%clk 0:00:02.5]}
65. b5 {[%clk 0:00:05]} 65... cxb5+ {[%clk 0:00:03]} 66. Kxb5 {[%clk 0:00:05.3]}
66... Kc2 {[%clk 0:00:03.7]} 67. d5 {[%clk 0:00:04.7]} 67... Kc3 {[%clk
0:00:04.3]} 68. c6 {[%clk 0:00:05]} 68... bxc6+ {[%clk 0:00:04.7]} 69. dxc6
{[%clk 0:00:05.5]} 69... Rh5+ {[%clk 0:00:05.1]} 70. Kb6 {[%clk 0:00:06]} 70...
Kc4 {[%clk 0:00:05.6]} 71. Rg6 {[%clk 0:00:05.9]} 71... Rb5+ {[%clk 0:00:06]}
72. Kc7 {[%clk 0:00:05.5]} 72... Rh5 {[%clk 0:00:04]} 73. Kb7 {[%clk 0:00:05.1]}
73... Rb5+ {[%clk 0:00:01.5]} 74. Kc8 {[%clk 0:00:05.3]} 1-0